bitfinex/quotes_SOLUSD_20250805
["timestamp","ask_amount","ask_price","bid_price","bid_amount"]
[1754375696962,54.18927483,168.77,168.76,0.06]
[1754375697158,48.01522367,168.77,168.76,0.06]
[1754375697343,54.18927483,168.77,168.76,0.06]
[1754375701947,58.17614582,168.77,168.76,0.06]
[1754375702463,64.35019698,168.77,168.76,0.06]
[1754375702773,66.72443698,168.77,168.76,0.06]
[1754375708476,5.92592592,168.75,168.74,0.06]
[1754375708775,26.0,168.72,168.71,0.06]
[1754375708960,73.57405116,168.72,168.71,0.06]
[1754375709165,74.25405116,168.72,168.71,0.06]
[1754375710288,84.16000349,168.72,168.71,0.06]
[1754375710664,38.78103077,168.72,168.71,0.06]
[1754375710990,47.57405116,168.72,168.71,0.77]
[1754375711659,41.4,168.72,168.71,0.77]
[1754375712164,41.42,168.73,168.71,0.77]
[1754375712365,41.42,168.73,168.71,0.06]
[1754375712772,41.42,168.73,168.72,0.71]
[1754375713461,47.59405116,168.73,168.72,0.71]
[1754375713887,47.59405116,168.73,168.71,0.06]
[1754375715192,47.59405116,168.73,168.71,0.77]
[1754375715964,41.42,168.73,168.71,0.77]
[1754375718491,41.42,168.73,168.72,0.71]
[1754375718690,31.92562021,168.76,168.72,0.71]
[1754375718691,6.17405116,168.76,168.72,0.71]
[1754375718992,148.2,168.75,168.74,6.17405116]
[1754375719167,148.2,168.75,168.74,6.88405116]
[1754375719778,148.2,168.75,168.74,0.71]
[1754375720600,148.2,168.75,168.74,6.63627711]
[1754375720801,41.42,168.77,168.74,12.81032827]
[1754375721098,41.43,168.78,168.75,0.71]
[1754375721464,41.43,168.78,168.74,12.10032827]
[1754375721465,41.43,168.78,168.76,0.71]
[1754375721672,41.43,168.78,168.77,0.71]
[1754375721876,0.03,168.78,168.77,6.88405116]
[1754375722293,0.71,168.78,168.75,0.71]
[1754375722496,0.71,168.78,168.74,12.81029125]
[1754375723190,6.17405116,168.76,168.72,0.71]
[1754375723396,6.85405116,168.76,168.72,0.71]
[1754375723694,6.85405116,168.76,168.72,6.88405116]
[1754375724271,6.17405116,168.74,168.71,0.06]
[1754375724492,6.17405116,168.74,168.71,5.98723925]
[1754375724695,48.25405116,168.75,168.71,6.69723925]
[1754375725079,41.4,168.75,168.71,12.16129041]
[1754375725282,41.4,168.75,168.72,0.71]
[1754375726203,41.4,168.75,168.72,6.63674958]
[1754375727794,41.4,168.75,168.72,12.81080074]
[1754375728108,41.4,168.75,168.72,6.63674958]
[1754375728306,42.08,168.75,168.72,5.92674958]
[1754375728524,0.68,168.74,168.71,5.98727743]
[1754375728976,47.57405116,168.75,168.71,6.66727743]
[1754375729177,47.57405116,168.75,168.71,12.16132859]
[1754375729401,41.4,168.75,168.73,5.92662834]
[1754375729980,41.4,168.75,168.73,6.60662834]
[1754375730379,41.4,168.75,168.72,5.92685878]
[1754375730581,41.4,168.75,168.72,6.60685878]
[1754375730806,41.4,168.75,168.72,12.78090994]
[1754375731201,42.07,168.75,168.72,12.10090994]
[1754375731408,41.4,168.75,168.72,12.78090994]
[1754375731610,42.07,168.75,168.72,12.78090994]
[1754375731809,42.07,168.75,168.72,5.92685878]
[1754375731991,41.4,168.75,168.72,5.92685878]
[1754375732177,41.4,168.75,168.71,6.23405116]
[1754375732178,6.84405116,168.74,168.71,0.06]
[1754375732681,48.28405116,168.73,168.71,0.06]
[1754375732898,6.17405116,168.72,168.71,0.06]
[1754375733107,6.84405116,168.72,168.71,0.06]
[1754375734383,12.77103077,168.72,168.71,0.06]
[1754375735096,6.84405116,168.72,168.71,0.06]
[1754375738191,41.44,168.73,168.71,0.06]
[1754375738389,41.44,168.73,168.71,0.74]
[1754375738597,148.2,168.74,168.72,6.85405116]
[1754375738796,148.2,168.74,168.73,0.68]
[1754375739394,0.03,168.78,168.73,6.85405116]
[1754375739596,41.49,168.78,168.74,6.85405116]
[1754375740012,42.16,168.78,168.74,6.85405116]
[1754375740201,42.16,168.78,168.74,12.77998151]
[1754375741312,41.49,168.78,168.75,6.85405116]
[1754375741492,41.49,168.78,168.75,12.77997257]
[1754375743223,0.67,168.77,168.74,12.10020711]
[1754375743418,0.67,168.77,168.72,5.98669523]
[1754375743419,0.67,168.76,168.72,5.98669523]
[1754375743626,0.67,168.75,168.72,12.16074639]
[1754375743805,0.67,168.75,168.72,5.98669523]
[1754375744120,41.46,168.76,168.72,12.16074639]
[1754375744323,41.46,168.76,168.73,12.10046321]
[1754375744500,41.46,168.76,168.75,6.17405116]
[1754375744703,0.03,168.78,168.75,6.85405116]
[1754375745930,0.03,168.78,168.76,6.17405116]
[1754375746217,0.03,168.78,168.76,6.85405116]
[1754375747611,0.03,168.78,168.77,6.85405116]
[1754375748597,0.03,168.78,168.77,12.77927483]
[1754375748800,0.03,168.78,168.77,12.09927483]
[1754375749126,0.7,168.78,168.76,5.92556554]
[1754375749426,0.67,168.77,168.73,15.78621557]
[1754375749630,0.67,168.77,168.73,37.06648173]
[1754375749807,0.67,168.77,168.74,6.17405116]
[1754375750417,6.20405116,168.78,168.74,6.85405116]
[1754375750608,0.7,168.78,168.74,6.85405116]
[1754375750810,0.7,168.78,168.74,12.78019424]
[1754375751530,0.03,168.78,168.76,6.17405116]
[1754375751839,0.03,168.78,168.77,6.85405116]
[1754375753710,0.03,168.78,168.77,12.77927483]
[1754375754226,0.03,168.78,168.77,12.09927483]
[1754375754429,0.03,168.78,168.77,12.77927483]
[1754375756164,0.03,168.78,168.77,0.68]
[1754375756354,0.03,168.78,168.76,12.09951225]
[1754375756543,0.03,168.78,168.76,12.77951225]
[1754375757836,0.03,168.78,168.77,6.85405116]
[1754375758030,0.03,168.78,168.77,21.96026673]
[1754375759068,0.03,168.78,168.77,15.78621557]
[1754375759267,0.03,168.78,168.77,21.96026673]
[1754375759577,0.03,168.78,168.77,27.8854904]
[1754375762272,0.03,168.78,168.77,27.2054904]
[1754375762842,0.03,168.78,168.77,27.8954904]
[1754375764433,0.03,168.78,168.77,27.2054904]
[1754375766367,0.69,168.78,168.77,27.2054904]
[1754375766665,0.03,168.78,168.77,27.2054904]
[1754375766958,0.03,168.78,168.77,27.8954904]
[1754375771370,0.03,168.78,168.77,27.2054904]
[1754375771737,0.69,168.78,168.77,6.17405116]
[1754375771943,0.69,168.78,168.76,5.92551928]
[1754375772165,0.66,168.77,168.76,5.92551928]
[1754375772850,0.66,168.77,168.76,6.17405116]
[1754375773556,0.66,168.77,168.75,5.92592592]
[1754375773751,0.66,168.77,168.76,6.17405116]
[1754375774058,0.69,168.78,168.76,6.17405116]
[1754375775247,0.03,168.78,168.77,5.92522367]
[1754375775647,0.69,168.78,168.77,5.92522367]
[1754375776671,0.03,168.78,168.77,12.09927483]
[1754375776980,0.03,168.78,168.77,6.17405116]
[1754375777976,0.69,168.78,168.76,5.92557478]
[1754375778175,0.69,168.78,168.77,6.17405116]
[1754375778680,0.03,168.78,168.77,6.17405116]
[1754375778975,0.03,168.78,168.77,6.86405116]
[1754375779960,0.03,168.78,168.77,12.78927483]
[1754375781778,0.03,168.78,168.77,27.8954904]
[1754375783280,0.69,168.78,168.76,12.09949245]
[1754375783885,0.03,168.78,168.76,12.09949245]
[1754375784062,0.03,168.78,168.77,6.17405116]
[1754375785183,0.03,168.78,168.76,12.09949245]
[1754375785374,0.69,168.78,168.76,12.09949245]
[1754375785684,0.03,168.78,168.77,6.17405116]
[1754375786383,0.03,168.78,168.76,6.61544129]
[1754375786562,0.03,168.78,168.77,12.09927483]
[1754375787266,0.03,168.78,168.77,5.92522367]
[1754375787671,0.03,168.78,168.77,12.09927483]
[1754375788567,0.03,168.78,168.77,12.78927483]
[1754375788891,0.03,168.78,168.77,12.09927483]
[1754375789068,0.03,168.78,168.77,12.76927483]
[1754375789260,0.03,168.78,168.77,12.09927483]
[1754375789461,0.73,168.78,168.74,41.44]
[1754375789689,6.90405116,168.78,168.74,15.16621557]
[1754375789868,6.17405116,168.75,168.74,0.06]
[1754375790069,6.17405116,168.76,168.74,0.06]
[1754375790257,0.7,168.75,168.74,0.06]
[1754375794798,6.87405116,168.75,168.74,0.06]
[1754375798397,0.7,168.75,168.74,0.06]
[1754375798572,6.87405116,168.75,168.74,0.06]
[1754375801499,47.57405116,168.76,168.74,0.06]
[1754375801901,41.4,168.76,168.74,0.06]
[1754375802086,148.2,168.77,168.75,6.84405116]
[1754375802602,0.03,168.8,168.79,41.10621557]
[1754375802807,0.03,168.8,168.79,47.95026673]
[1754375803505,0.03,168.82,168.8,15.10621557]
[1754375803686,0.03,168.82,168.81,21.28026673]
[1754375803995,0.03,168.82,168.81,21.95026673]
[1754375804391,0.03,168.82,168.81,15.10621557]
[1754375804590,0.03,168.82,168.81,21.28026673]
[1754375805802,0.03,168.82,168.81,27.2040864]
[1754375807220,0.73,168.82,168.81,5.92381967]
[1754375808702,6.90405116,168.82,168.79,5.924177]
[1754375808908,0.7,168.81,168.79,12.09822816]
[1754375809105,0.73,168.82,168.8,6.17405116]
[1754375809295,0.03,168.82,168.8,6.17405116]
[1754375809716,0.73,168.82,168.79,12.09822816]
[1754375809932,0.7,168.81,168.79,12.09822816]
[1754375810319,0.7,168.81,168.79,5.924177]
[1754375810990,0.7,168.8,168.78,12.09880934]
[1754375812209,0.73,168.82,168.78,12.09880934]
[1754375812384,0.73,168.82,168.8,6.17405116]
[1754375812587,0.03,168.82,168.8,6.17405116]
[1754375812799,0.03,168.82,168.81,5.92381967]
[1754375813204,0.03,168.82,168.81,27.8740864]
[1754375813615,0.03,168.82,168.81,27.2040864]
[1754375814528,0.03,168.82,168.81,12.09787083]
[1754375815524,0.03,168.82,168.81,5.92381967]
[1754375816307,0.03,168.82,168.81,12.76787083]
[1754375817010,17.278268,168.86,168.82,15.10621557]
[1754375817219,41.36,168.89,168.85,21.28026673]
[1754375817434,41.36,168.89,168.88,6.17405116]
[1754375817942,41.36,168.89,168.87,12.09548546]
[1754375818104,0.7,168.88,168.87,12.09548546]
[1754375818725,41.36,168.89,168.87,12.09548546]
[1754375818916,42.06,168.89,168.87,5.9214343]
[1754375819806,42.06,168.89,168.87,12.09548546]
[1754375821914,42.06,168.89,168.87,5.9214343]
[1754375822112,0.7,168.89,168.87,5.9214343]
[1754375822741,0.7,168.89,168.86,12.09599591]
[1754375822914,0.7,168.88,168.86,12.09599591]
[1754375823421,0.7,168.87,168.86,5.92194475]
[1754375824138,0.7,168.87,168.85,5.92237981]
[1754375824436,0.7,168.86,168.84,12.09669849]
[1754375825331,0.7,168.86,168.84,6.17405116]
[1754375825565,148.3,168.9,168.85,21.99026673]
[1754375825705,148.3,168.9,168.88,6.17405116]
[1754375825910,148.3,168.9,168.88,12.09533553]
[1754375826738,0.7,168.89,168.85,21.28026673]
[1754375826909,0.7,168.88,168.86,5.92196176]
[1754375827237,0.7,168.88,168.86,12.09601292]
[1754375827419,0.7,168.89,168.86,12.09601292]
[1754375827820,0.7,168.89,168.86,5.92196176]
[1754375828228,0.7,168.88,168.86,5.92196176]
[1754375828836,6.17405116,168.89,168.86,5.92196176]
[1754375829224,6.87405116,168.89,168.86,5.92196176]
[1754375830942,6.17405116,168.89,168.85,15.10621557]
[1754375831269,6.17405116,168.86,168.82,56.46621557]
[1754375831477,6.87405116,168.86,168.82,63.35026673]
[1754375831841,6.87405116,168.86,168.82,69.27373551]
[1754375832169,6.17405116,168.87,168.82,68.56373551]
[1754375832369,148.2,168.88,168.84,12.09681827]
[1754375832546,148.2,168.88,168.85,0.71]
[1754375834473,148.9,168.88,168.85,6.63228283]
[1754375834972,148.9,168.88,168.85,5.92228283]
[1754375835276,0.7,168.87,168.85,5.92228283]
[1754375836267,0.7,168.87,168.82,15.10621557]
[1754375836268,0.7,168.86,168.82,15.10621557]
[1754375836467,6.87405116,168.86,168.82,15.10621557]
[1754375836679,0.7,168.85,168.82,15.10621557]
[1754375837966,0.7,168.84,168.82,5.92333339]
[1754375838362,0.7,168.84,168.81,5.9235648]
[1754375838658,0.7,168.83,168.81,5.9235648]
[1754375839053,6.17405116,168.85,168.81,5.9235648]
[1754375839257,0.7,168.84,168.81,5.9235648]
[1754375839981,6.17405116,168.85,168.81,6.6335648]
[1754375840277,6.87405116,168.86,168.81,12.80761596]
[1754375841463,0.7,168.85,168.81,12.80761596]
[1754375841967,148.9,168.85,168.81,12.80761596]
[1754375843560,148.2,168.85,168.82,6.88405116]
[1754375843761,148.2,168.85,168.84,6.17405116]
[1754375844171,148.2,168.85,168.84,5.92276711]
[1754375846573,148.2,168.85,168.84,12.80681827]
[1754375847387,148.2,168.85,168.84,27.91303384]
[1754375847571,148.2,168.85,168.84,27.20303384]
[1754375847771,48.23405116,168.88,168.84,27.20303384]
[1754375848106,0.7,168.87,168.84,21.02898268]
[1754375848286,0.7,168.86,168.84,21.02898268]
[1754375848489,6.87405116,168.88,168.84,27.20303384]
[1754375848659,0.71,168.87,168.84,27.20303384]
[1754375850279,0.74,168.87,168.84,27.20303384]
[1754375850590,0.74,168.87,168.84,27.92303384]
[1754375851987,0.03,168.87,168.85,6.89405116]
[1754375852287,0.71,168.86,168.84,21.02898268]
[1754375855770,0.03,168.87,168.84,27.20303384]
[1754375856297,0.03,168.87,168.84,27.92303384]
[1754375858893,0.74,168.87,168.84,27.20303384]
[1754375861099,0.74,168.87,168.84,21.02898268]
[1754375864407,0.74,168.87,168.84,21.74898268]
[1754375867713,0.74,168.87,168.84,27.92303384]
[1754375868016,0.71,168.86,168.84,5.92276711]
[1754375868206,6.17405116,168.85,168.81,41.34]
[1754375868512,0.71,168.84,168.81,42.06]
[1754375868682,0.71,168.84,168.81,47.98371471]
[1754375870412,6.88405116,168.84,168.81,41.34]
[1754375870644,0.71,168.83,168.8,31.98404211]
[1754375870790,0.71,168.83,168.8,0.06]
[1754375871494,6.88405116,168.82,168.8,0.06]
[1754375872012,6.88405116,168.81,168.8,0.06]
[1754375873991,0.71,168.81,168.8,0.06]
[1754375874211,6.88405116,168.81,168.8,0.06]
[1754375874835,0.71,168.81,168.8,0.06]
[1754375875036,6.88405116,168.81,168.8,0.06]
[1754375875547,0.71,168.81,168.8,0.06]
[1754375877043,6.17405116,168.82,168.8,0.06]
[1754375877246,6.88405116,168.82,168.8,0.06]
[1754375877619,148.91,168.84,168.8,0.78]
[1754375877935,155.08405116,168.84,168.8,0.78]
[1754375878324,6.88405116,168.83,168.8,0.78]
[1754375879334,6.88405116,168.83,168.8,6.70415794]
[1754375880043,6.88405116,168.83,168.8,5.98415794]
[1754375880247,0.67,168.82,168.8,0.06]
[1754375880540,0.67,168.82,168.8,5.98416151]
[1754375880748,0.67,168.82,168.8,0.06]
[1754375882241,0.67,168.81,168.8,0.06]
[1754375882855,6.84405116,168.81,168.8,0.06]
[1754375884850,0.67,168.81,168.8,0.06]
[1754375886251,155.04405116,168.81,168.8,0.06]
[1754375886558,202.32787083,168.81,168.8,0.06]
[1754375886735,196.40405116,168.81,168.8,0.06]
[1754375886934,202.32787083,168.81,168.8,0.06]
[1754375887122,54.12787083,168.81,168.8,0.06]
[1754375891852,6.84405116,168.81,168.8,0.06]
[1754375892063,54.12787083,168.81,168.8,0.06]
[1754375894679,2.373395,168.83,168.8,0.06]
[1754375894854,0.67,168.83,168.8,0.06]
[1754375895041,41.36,168.83,168.81,0.65]
[1754375896371,41.36,168.83,168.81,6.57376034]
[1754375897062,41.36,168.83,168.81,5.92376034]
[1754375897269,0.03,168.84,168.82,6.82405116]
[1754375897449,0.03,168.84,168.82,0.65]
[1754375897764,0.03,168.84,168.82,5.9232518]
[1754375897969,0.03,168.84,168.82,12.09730296]
[1754375898149,0.03,168.84,168.83,6.82405116]
[1754375899652,0.03,168.84,168.83,12.74716908]
[1754375900949,0.03,168.84,168.83,27.85338465]
[1754375909685,0.03,168.84,168.83,27.20338465]
[1754375909983,0.03,168.84,168.81,15.10621557]
[1754375909984,0.71,168.84,168.81,15.10621557]
[1754375910187,0.03,168.84,168.8,79.49799786]
[1754375910379,0.68,168.83,168.8,79.49799786]
[1754375911267,0.68,168.83,168.8,67.4]
[1754375911473,0.68,168.82,168.8,26.06]
[1754375911683,6.88405116,168.84,168.81,26.0]
[1754375911886,0.71,168.84,168.81,26.0]
[1754375912672,0.68,168.83,168.81,26.0]
[1754375913085,0.03,168.84,168.81,26.0]
[1754375913594,0.68,168.83,168.81,26.0]
[1754375914168,0.03,168.84,168.82,6.17405116]
[1754375914373,0.03,168.84,168.82,6.86405116]
[1754375914590,0.03,168.84,168.82,6.17405116]
[1754375914963,0.71,168.84,168.81,32.17405116]
[1754375915481,0.71,168.84,168.81,32.23405116]
[1754375915868,0.71,168.84,168.82,6.17405116]
[1754375915869,0.03,168.84,168.82,6.17405116]
[1754375916072,0.03,168.84,168.83,6.17405116]
[1754375916283,0.03,168.84,168.83,21.97026673]
[1754375917490,0.03,168.84,168.83,27.89338465]
[1754375919188,0.03,168.84,168.83,27.20338465]
[1754375920889,0.03,168.84,168.81,70.481846]
[1754375920890,0.03,168.84,168.82,12.09740352]
[1754375921102,0.68,168.83,168.81,0.06]
[1754375921269,0.68,168.82,168.81,0.06]
[1754375921463,0.68,168.82,168.81,26.06]
[1754375921667,0.71,168.84,168.81,26.06]
[1754375921879,0.68,168.83,168.81,26.06]
[1754375922274,0.03,168.84,168.81,38.1578159]
[1754375922465,0.03,168.84,168.82,6.17405116]
[1754375922780,0.03,168.84,168.83,21.28026673]
[1754375922982,0.03,168.84,168.83,27.89338465]
[1754375926504,0.03,168.84,168.83,30.26508965]
[1754375927372,0.03,168.84,168.83,71.64508965]
[1754375933981,0.03,168.84,168.83,64.78103849]
[1754375934195,0.03,168.84,168.83,68.58338465]
[1754375934997,0.03,168.84,168.83,70.95509065]
[1754375935194,0.03,168.84,168.83,68.58338465]
[1754375935603,0.71,168.84,168.83,62.40933349]
[1754375935912,0.71,168.84,168.81,79.49762848]
[1754375937388,0.71,168.84,168.81,73.32357732]
[1754375937603,0.71,168.84,168.81,38.15762848]
[1754375937787,0.71,168.84,168.81,31.98357732]
[1754375937989,6.88405116,168.84,168.81,26.06]
[1754375938216,0.68,168.83,168.81,0.06]
[1754375942082,0.68,168.83,168.81,6.23405116]
[1754375942810,0.68,168.83,168.81,0.06]
[1754375943006,0.71,168.84,168.81,6.23405116]
[1754375943199,0.71,168.84,168.82,6.17405116]
[1754375944997,0.71,168.84,168.81,5.98347384]
[1754375945195,0.71,168.84,168.82,6.17405116]
[1754375945723,0.71,168.84,168.81,12.157525]
[1754375946223,0.71,168.84,168.81,0.06]
[1754375946417,0.68,168.83,168.81,21.34026673]
[1754375946716,0.71,168.84,168.82,6.17405116]
[1754375947216,0.71,168.84,168.81,15.16621557]
[1754375947415,0.71,168.84,168.81,0.06]
[1754375947615,6.17405116,168.83,168.81,0.06]
[1754375948003,0.68,168.82,168.81,0.06]
[1754375949113,0.03,168.84,168.81,0.06]
[1754375949114,0.71,168.84,168.81,0.06]
[1754375949501,0.03,168.84,168.83,6.17405116]
[1754375951301,0.03,168.84,168.83,12.09716908]
[1754375951907,0.03,168.84,168.83,12.76716908]
[1754375953916,0.03,168.84,168.83,12.09716908]
[1754375954313,0.71,168.84,168.83,5.92311792]
[1754375954725,0.03,168.84,168.83,12.09716908]
[1754375955716,0.71,168.84,168.83,12.09716908]
[1754375956132,0.03,168.84,168.83,12.09716908]
[1754375956709,0.71,168.84,168.83,5.92311792]
[1754375957220,0.71,168.84,168.82,5.92342968]
[1754375957626,0.68,168.83,168.82,5.92342968]
[1754375958816,0.03,168.84,168.82,12.09748084]
[1754375959023,0.71,168.84,168.82,12.09748084]
[1754375959932,0.71,168.84,168.82,5.92342968]
[1754375960238,0.68,168.83,168.82,26.0]
[1754375962130,0.03,168.84,168.82,38.76735579]
[1754375962336,0.71,168.84,168.82,32.17405116]
[1754375964337,0.71,168.84,168.82,38.09736975]
[1754375964509,0.03,168.84,168.82,38.09736975]
[1754375965321,0.71,168.84,168.82,38.09736975]
[1754375965522,0.71,168.84,168.82,31.92331859]
[1754375965716,0.71,168.84,168.82,38.09736975]
[1754375966848,0.03,168.84,168.82,26.0]
[1754375967032,0.68,168.83,168.82,26.0]
[1754375967621,0.68,168.83,168.82,31.92346878]
[1754375967830,0.71,168.84,168.82,31.92346878]
[1754375968651,0.03,168.84,168.82,38.09751994]
[1754375969016,0.03,168.84,168.82,38.76751994]
[1754375969350,0.03,168.84,168.82,31.92346878]
[1754375969560,0.71,168.84,168.82,31.92346878]
[1754375969767,0.71,168.84,168.82,26.0]
[1754375970234,0.68,168.83,168.82,26.0]
[1754375971552,0.03,168.84,168.82,26.0]
[1754375971857,0.03,168.84,168.82,31.92341687]
[1754375973143,0.03,168.84,168.82,26.0]
[1754375973447,0.68,168.83,168.82,26.0]
[1754375974852,0.68,168.83,168.81,0.06]
[1754375974853,6.85405116,168.83,168.81,0.06]
[1754375975150,48.24405116,168.84,168.81,0.06]
[1754375975454,0.68,168.83,168.81,0.06]
[1754375975832,0.68,168.83,168.81,5.98379179]
[1754375976433,41.39,168.84,168.82,6.84405116]
[1754375976631,0.03,168.84,168.83,6.84405116]
[1754375977421,0.03,168.84,168.83,12.76716908]
[1754375978134,0.03,168.84,168.82,12.09738443]
[1754375979645,0.71,168.84,168.82,12.09738443]
[1754375980353,0.03,168.84,168.82,12.09738443]
[1754375982555,0.03,168.84,168.83,6.84405116]
[1754375983024,0.03,168.84,168.83,6.17405116]
[1754375983230,0.03,168.84,168.82,12.09738443]
[1754375984262,0.71,168.84,168.82,5.92333327]
[1754375984774,0.03,168.84,168.82,12.09738443]
[1754375985143,0.03,168.84,168.82,12.76738443]
[1754375985658,0.03,168.84,168.83,6.17405116]
[1754375986230,0.71,168.84,168.82,12.09738443]
[1754375987270,0.71,168.84,168.82,5.92333327]
[1754375987566,0.68,168.83,168.82,5.92333327]
[1754375987864,0.03,168.84,168.82,5.92333327]
[1754375988262,0.71,168.84,168.82,5.92333327]
[1754375990377,0.03,168.84,168.81,38.15781404]
[1754375990664,0.71,168.84,168.81,38.15781404]
[1754375991634,0.68,168.83,168.81,26.06]
[1754375992661,0.68,168.83,168.81,0.06]
[1754376000470,0.66,168.82,168.81,0.06]
[1754376001362,6.83405116,168.82,168.81,0.06]
[1754376001567,10.8290881,168.82,168.81,0.06]
[1754376002143,16.75255688,168.82,168.81,0.06]
[1754376003276,16.75094126,168.82,168.81,0.06]
[1754376007582,16.75094126,168.82,168.81,1e-08]
[1754376007772,57.85715683,168.82,168.8,0.06]
[1754376007973,52.18747248,168.81,168.8,0.06]
[1754376008174,58.11129215,168.81,168.8,0.06]
[1754376009769,73.21750772,168.81,168.8,0.06]
[1754376010374,75.59132472,168.81,168.8,0.06]
[1754376012495,60.48510915,168.81,168.8,0.06]
[1754376014194,56.49168783,168.81,168.8,0.06]
[1754376014580,76.54985413,168.81,168.8,0.06]
[1754376016605,80.52742144,168.81,168.8,0.06]
[1754376016782,76.54985413,168.81,168.8,0.06]
[1754376021298,91.6560697,168.81,168.8,0.06]
[1754376022193,91.6860697,168.81,168.8,0.06]
[1754376025229,85.51201854,168.81,168.8,0.06]
[1754376025729,91.6860697,168.81,168.8,0.06]
[1754376028535,95.66716804,168.81,168.8,0.06]
[1754376028914,106.59095247,168.81,168.8,0.06]
[1754376029117,80.59095247,168.81,168.8,0.06]
[1754376029512,74.41690131,168.81,168.8,0.06]
[1754376029712,80.59095247,168.81,168.8,0.06]
[1754376031229,174.08,168.79,168.78,0.06]
[1754376031432,219.42109834,168.79,168.78,0.06]
[1754376031633,237.55589666,168.79,168.78,0.06]
[1754376031935,243.72994766,168.79,168.78,0.06]
[1754376032422,243.03994766,168.79,168.78,0.06]
[1754376033041,248.96446925,168.79,168.78,0.06]
[1754376033338,249.65446925,168.79,168.78,0.06]
[1754376037040,248.96446925,168.79,168.78,0.06]
[1754376039432,249.65446925,168.79,168.78,0.06]
[1754376043328,79.54963619,168.79,168.78,0.06]
[1754376044455,148.19999999,168.76,168.74,0.06]
[1754376044660,41.36,168.75,168.74,0.06]
[1754376044852,42.05,168.75,168.74,0.06]
[1754376045044,46.085167,168.75,168.74,0.06]
[1754376045430,52.01109292,168.75,168.74,0.06]
[1754376046256,55.98625986,168.75,168.74,0.06]
[1754376046439,59.96486417,168.75,168.74,0.06]
[1754376046640,62.20480134,168.75,168.74,0.06]
[1754376052061,5.92662834,168.73,168.72,0.06]
[1754376052361,53.50173245,168.73,168.72,0.06]
[1754376053682,55.87625345,168.73,168.72,0.06]
[1754376054168,163.24621557,168.72,168.71,1e-08]
[1754376054344,25.9845004,168.72,168.71,1e-08]
[1754376054875,28.3595854,168.72,168.71,1e-08]
[1754376055072,27.6695854,168.72,168.71,1e-08]
[1754376055286,12.56336983,168.72,168.71,1e-08]
[1754376056072,18.49034944,168.72,168.71,1e-08]
[1754376056858,19.18034944,168.72,168.71,1e-08]
[1754376057564,12.27524533,168.72,168.71,1e-08]
[1754376057766,18.49034944,168.72,168.71,1e-08]
[1754376058172,14.51716872,168.72,168.71,1e-08]
[1754376058375,8.30206461,168.72,168.71,1e-08]
[1754376058563,14.51716872,168.72,168.71,0.72000001]
[1754376059064,8.30206461,168.72,168.71,0.72000001]
[1754376059270,5.92697961,168.72,168.71,0.72000001]
[1754376060078,67.36,168.73,168.71,0.72000001]
[1754376060472,41.36,168.73,168.72,6.21510411]
[1754376060662,41.36,168.73,168.72,6.90510411]
[1754376061272,41.36,168.73,168.72,0.69]
[1754376062190,47.28662834,168.73,168.72,0.69]
[1754376063472,53.50173245,168.73,168.71,1e-08]
[1754376063877,47.28662834,168.73,168.71,1e-08]
[1754376064188,5.92662834,168.73,168.71,1e-08]
[1754376064378,41.36,168.72,168.71,0.69000001]
[1754376068409,41.36,168.72,168.71,1e-08]